bitfinex-derivatives/quotes_ETHF0:USTF0_20241008
["timestamp","ask_amount","ask_price","bid_price","bid_amount"]
[1728406187302,1.02357,2443.8,2443.3,3.6173]
[1728406187303,0.40947,2443.5,2443.3,3.6173]
[1728406187504,0.40946,2443.6,2443.3,3.6173]
[1728406187695,0.40945,2443.6,2443.4,0.40948]
[1728406187896,0.40948,2443.5,2443.3,3.2078]
[1728406188602,0.40948,2443.5,2443.3,3.6173]
[1728406188798,1.02361,2443.7,2443.3,3.2078]
[1728406189099,0.40949,2443.4,2443.2,1.06601]
[1728406189299,0.4095,2443.3,2443.2,0.6565]
[1728406189599,0.40953,2443.2,2443.0,3.61734]
[1728406189896,0.40953,2443.2,2443.1,0.40954]
[1728406190699,0.40954,2443.1,2443.0,3.61734]
[1728406191301,1.02378,2443.3,2443.0,3.2078]
[1728406191516,0.40953,2443.2,2443.1,0.40953]
[1728406194399,0.6838,2443.3,2443.2,0.40952]
[1728406194400,1.09331,2443.3,2443.2,0.40952]
[1728406195406,0.40951,2443.3,2443.2,0.40952]
[1728406195813,0.6838,2443.6,2443.2,4.0928]
[1728406196001,0.40949,2443.4,2443.3,0.40948]
[1728406196202,0.6838,2443.6,2443.5,0.40947]
[1728406196506,1.06385,2443.7,2443.5,0.40947]
[1728406196507,1.06385,2443.7,2443.6,0.40945]
[1728406196902,0.6544,2443.7,2443.6,0.40945]
[1728406197505,0.6415,2443.9,2443.5,3.2078]
[1728406197705,0.6415,2443.9,2443.7,0.40943]
[1728406198015,0.6415,2443.9,2443.8,0.40942]
[1728406198498,0.6482,2444.0,2443.8,0.40942]
[1728406198701,1.05759,2444.0,2443.8,0.40942]
[1728406198901,0.6482,2444.0,2443.8,0.40942]
[1728406199108,1.05759,2444.0,2443.8,0.40942]
[1728406199314,0.6482,2444.0,2443.9,0.4094]
[1728406199608,1.05086,2444.2,2444.0,0.40938]
[1728406200002,0.6415,2444.2,2444.0,0.40938]
[1728406200208,0.6415,2444.2,2443.8,3.8971]
[1728406200404,0.7003,2444.4,2443.8,8.11065]
[1728406200606,0.7003,2444.4,2444.1,3.2078]
[1728406200801,3.8903,2444.4,2444.1,3.2078]
[1728406201005,4.29962,2444.4,2444.1,3.61716]
[1728406201709,3.8903,2444.4,2444.1,3.2078]
[1728406202009,0.7003,2444.4,2444.3,0.40934]
[1728406202710,0.7003,2444.4,2444.2,0.40934]
[1728406203013,0.7003,2444.4,2444.3,0.40934]
[1728406203213,4.27139,2444.6,2444.1,3.2078]
[1728406203408,4.27139,2444.6,2444.3,0.40932]
[1728406203710,3.8621,2444.6,2444.1,3.2078]
[1728406203919,0.40931,2444.5,2444.2,0.40934]
[1728406204217,0.40935,2444.2,2444.1,3.2078]
[1728406204415,3.59935,2444.2,2444.1,3.2078]
[1728406205008,0.40935,2444.2,2444.1,3.2078]
[1728406205410,4.50055,2444.2,2444.1,3.2078]
[1728406206711,4.0912,2444.2,2444.1,3.2078]
[1728406207310,4.50055,2444.2,2444.1,3.2078]
[1728406207508,4.29624,2444.3,2444.1,3.2078]
[1728406207715,3.8869,2444.3,2444.1,3.2078]
[1728406207916,0.6969,2444.3,2444.1,3.2078]
[1728406208118,0.40932,2444.4,2444.2,0.40935]
[1728406208316,0.40932,2444.4,2444.1,3.61716]
[1728406208918,6.6358,2444.6,2444.1,3.2078]
[1728406209218,4.5138,2444.6,2444.1,3.2078]
[1728406209419,0.40931,2444.5,2444.3,0.40933]
[1728406209619,0.40933,2444.4,2444.1,3.61716]
[1728406210018,0.40935,2444.2,2444.1,3.2078]
[1728406210210,0.40932,2444.4,2444.1,3.2078]
[1728406210410,3.59931,2444.5,2444.3,0.40933]
[1728406210611,4.5138,2444.6,2444.1,3.2078]
[1728406210811,0.40934,2444.3,2444.1,3.61717]
[1728406211020,4.5138,2444.6,2444.3,0.40933]
[1728406211220,1.306,2444.6,2444.4,3.2078]
[1728406211422,0.6738,2444.9,2444.7,0.40926]
[1728406211720,6.33504,2445.1,2444.8,0.40924]
[1728406211721,0.40921,2445.1,2444.8,0.40924]
[1728406211916,0.4092,2445.2,2444.9,0.40923]
[1728406212223,0.6841,2445.3,2445.0,3.2078]
[1728406212416,3.2078,2445.4,2445.0,6.3978]
[1728406212621,3.2078,2445.4,2445.1,0.4092]
[1728406212919,3.2078,2445.4,2445.0,6.3978]
[1728406212920,0.40917,2445.3,2445.0,3.2078]
[1728406213218,0.4092,2445.1,2445.0,3.2078]
[1728406214319,0.40919,2445.2,2445.0,3.2078]
[1728406214615,0.40919,2445.2,2444.9,0.40923]
[1728406214813,0.7012,2445.3,2445.0,3.2078]
[1728406215009,0.7012,2445.3,2445.1,0.40919]
[1728406215316,0.7012,2445.3,2445.0,3.2078]
[1728406215616,0.7012,2445.3,2445.2,0.40918]
[1728406216418,0.7012,2445.3,2445.1,0.40919]
[1728406216620,0.7012,2445.3,2445.1,0.4092]
[1728406216811,0.7012,2445.3,2445.0,3.8523]
[1728406217011,0.7012,2445.3,2445.2,0.40918]
[1728406217216,1.09322,2445.6,2445.2,0.40918]
[1728406217422,1.3326,2445.6,2445.3,3.2078]
[1728406217722,0.40908,2445.9,2445.6,0.40912]
[1728406218424,0.40909,2445.8,2445.5,0.40913]
[1728406218620,0.40908,2445.9,2445.3,6.3978]
[1728406218823,0.40908,2445.9,2445.6,0.40912]
[1728406219225,0.40908,2445.9,2445.4,0.40915]
[1728406219426,0.40909,2445.8,2445.6,3.2078]
[1728406219619,2.33825,2446.0,2445.6,3.2078]
[1728406219815,1.3156,2446.0,2445.6,3.2078]
[1728406220022,1.3156,2446.0,2445.6,3.61691]
[1728406220221,0.40907,2445.9,2445.6,3.61691]
[1728406220423,1.3156,2446.0,2445.6,3.2078]
[1728406220621,0.40901,2446.3,2446.0,0.40905]
[1728406220923,1.3032,2446.5,2445.9,3.2078]
[1728406221123,0.40904,2446.1,2445.9,3.2078]
[1728406221920,0.40905,2446.0,2445.9,3.2078]
[1728406222223,0.40905,2446.0,2444.7,2.04631]
[1728406222224,0.40915,2445.4,2445.3,3.2078]
[1728406222419,0.40921,2445.1,2444.8,4.03095]
[1728406222721,1.0229,2445.4,2444.8,4.03095]
[1728406222722,0.40923,2444.9,2444.8,3.6217]
[1728406222918,1.02298,2445.2,2444.8,3.2078]
[1728406223120,0.40921,2445.1,2444.8,3.2078]
[1728406223324,1.02297,2445.2,2444.8,3.2078]
[1728406223518,0.40923,2445.0,2444.8,3.2078]
[1728406224018,7.7003,2445.3,2444.8,3.2078]
[1728406224224,4.5103,2445.3,2444.8,3.2078]
[1728406224424,0.40921,2445.1,2444.8,3.2078]
[1728406225127,5.53325,2445.3,2444.8,3.2078]
[1728406225428,0.40923,2445.0,2444.8,3.2078]
[1728406227217,4.5103,2445.3,2444.8,3.2078]
[1728406227218,0.40923,2444.9,2444.8,3.2078]
[1728406228427,0.40921,2445.1,2444.8,3.61705]
[1728406228822,0.40922,2445.0,2444.8,3.2078]
[1728406229331,0.40919,2445.2,2444.9,0.40923]
[1728406229724,0.4092,2445.1,2444.8,3.61704]
[1728406230327,0.40923,2445.0,2444.8,3.2078]
[1728406230532,1.3025,2445.3,2444.8,3.2078]
[1728406230732,2.32544,2445.3,2444.8,3.2078]
[1728406231024,0.40923,2444.9,2444.8,3.2078]
[1728406232729,1.3025,2445.3,2444.8,3.2078]
[1728406233031,0.40919,2445.2,2444.9,0.40923]
[1728406233633,0.40918,2445.2,2444.8,3.9103]
[1728406233931,1.3025,2445.3,2444.8,3.9103]
[1728406233932,1.71168,2445.3,2445.0,0.40921]
[1728406234124,0.40918,2445.2,2444.9,0.40922]
[1728406234737,0.40914,2445.5,2445.1,3.2078]
[1728406234924,0.40914,2445.5,2445.2,0.40918]
[1728406235130,0.40916,2445.4,2445.1,3.61699]
[1728406235634,1.02287,2445.5,2445.1,3.2078]
[1728406235835,1.02287,2445.5,2444.8,0.7025]
[1728406235836,0.40919,2445.2,2444.9,0.40923]
[1728406236028,0.40919,2445.2,2444.8,0.7025]
[1728406236228,0.40919,2445.2,2444.9,0.40922]
[1728406236733,0.40919,2445.2,2444.8,0.7025]
[1728406236931,1.02289,2445.4,2445.0,0.40921]
[1728406237233,0.40919,2445.2,2444.8,0.7025]
[1728406237533,0.40919,2445.2,2444.9,0.40923]
[1728406237534,0.4092,2445.2,2444.9,0.40923]
[1728406237933,1.02289,2445.4,2445.0,0.40921]
[1728406238238,0.40919,2445.2,2444.8,0.7025]
[1728406238439,1.02289,2445.4,2444.9,0.40922]
[1728406238735,0.40919,2445.2,2445.0,0.40921]
[1728406239635,0.40921,2445.1,2444.9,0.40923]
[1728406239835,0.40921,2445.1,2444.9,0.40922]
[1728406240036,3.906,2445.6,2444.8,0.7025]
[1728406240335,0.40921,2445.1,2444.9,0.40923]
[1728406240840,0.40922,2445.0,2444.8,0.40924]
[1728406241034,0.40921,2445.1,2444.8,0.40924]
[1728406241341,1.07981,2445.1,2444.8,0.40924]
[1728406241731,1.07981,2445.1,2444.9,0.40923]
[1728406242126,0.6706,2445.1,2444.7,3.8976]
[1728406242533,0.40925,2444.9,2444.7,3.61706]
[1728406242728,1.07981,2445.1,2444.8,0.40925]
[1728406242930,0.40923,2445.0,2444.7,3.2078]
[1728406243244,0.40923,2445.0,2444.7,3.61705]
[1728406243634,1.07982,2445.1,2444.8,0.40925]
[1728406243837,0.6706,2445.1,2444.7,3.2078]
[1728406244031,1.07982,2445.1,2444.8,0.40925]
[1728406244232,0.6706,2445.1,2444.8,0.40925]
[1728406244438,1.07981,2445.1,2444.8,0.40924]
[1728406245040,1.0798,2445.1,2444.9,0.40923]
[1728406245343,0.6706,2445.1,2444.9,0.40923]
[1728406245845,1.0798,2445.1,2444.9,0.40923]
[1728406246142,0.6706,2445.1,2444.9,0.40923]
[1728406246545,0.6706,2445.1,2444.7,3.2078]
[1728406246737,0.40923,2445.0,2444.7,3.61706]
[1728406247235,0.6706,2445.1,2444.7,3.2078]
[1728406247541,1.07981,2445.1,2444.8,0.40924]
[1728406247743,0.6706,2445.1,2444.8,0.40924]
[1728406248045,1.07981,2445.1,2444.8,0.40924]
[1728406248342,0.40924,2444.9,2444.7,3.61707]
[1728406248543,0.40925,2444.8,2444.7,3.2078]
[1728406248732,4.0904,2444.8,2444.1,3.8672]
[1728406248935,3.19,2444.6,2444.1,3.8672]
[1728406249242,0.40933,2444.4,2444.1,1.06877]
[1728406249442,3.19,2444.4,2443.9,1.06409]
[1728406249633,0.40935,2444.3,2444.0,0.40938]
[1728406251542,0.644,2444.5,2444.1,3.2078]
[1728406251947,0.644,2444.5,2444.3,0.40933]
[1728406252148,0.644,2444.5,2444.1,3.2078]
[1728406252344,0.644,2444.5,2444.3,0.40932]
[1728406252543,0.644,2444.5,2444.2,0.6671]
[1728406252742,0.644,2444.5,2444.3,0.40934]
[1728406253039,0.644,2444.5,2444.2,0.6671]
[1728406253244,0.644,2444.5,2444.4,0.40932]
[1728406253644,0.644,2444.5,2444.3,0.40933]
[1728406255051,0.644,2444.5,2444.2,0.6671]
[1728406255348,0.644,2444.5,2444.0,0.6606]
[1728406255349,0.40934,2444.3,2444.0,0.40938]
[1728406255548,3.19,2444.4,2443.8,0.7033]
[1728406255745,3.19,2444.4,2443.7,0.82333]
[1728406255746,0.40939,2444.0,2443.7,0.82333]
[1728406256155,0.6969,2444.0,2443.7,0.4139]
[1728406256452,0.6969,2444.0,2443.5,0.7033]
[1728406256644,0.40944,2443.7,2443.4,0.40947]
[1728406257051,4.21351,2443.9,2443.4,0.40947]
[1728406257248,4.21351,2443.9,2443.2,3.9111]
[1728406257249,0.40947,2443.6,2443.2,3.9111]
[1728406257449,0.6487,2443.5,2443.3,0.4095]
[1728406257643,0.6487,2443.5,2443.2,0.7033]
[1728406257845,1.05817,2443.5,2443.2,1.11281]
[1728406258041,0.6487,2443.5,2443.3,0.4095]
[1728406259353,0.6487,2443.5,2443.2,0.7033]
[1728406259650,0.40949,2443.4,2443.1,0.40953]
[1728406259853,0.4095,2443.4,2443.0,0.4139]
[1728406260045,0.4095,2443.4,2443.1,0.40953]
[1728406260545,0.40951,2443.3,2443.0,0.82344]
[1728406260744,4.8624,2443.5,2443.0,0.82344]
[1728406260949,0.4095,2443.4,2443.1,0.40953]
[1728406261444,1.05817,2443.5,2443.2,0.40952]
[1728406261650,1.05817,2443.5,2443.0,0.4139]
[1728406262051,1.05817,2443.5,2443.2,0.40952]
[1728406262354,1.05817,2443.5,2443.1,0.40954]
[1728406262551,3.8387,2443.5,2443.0,0.82345]
[1728406262752,0.6487,2443.5,2443.2,0.40951]
[1728406263049,0.40953,2443.2,2443.0,0.4139]
[1728406263248,0.40953,2443.2,2442.9,3.61737]
[1728406263648,1.02377,2443.3,2442.9,3.2078]
[1728406263847,0.40954,2443.1,2442.9,3.2078]
[1728406264052,0.40957,2442.9,2442.8,3.2078]
[1728406264249,0.40957,2442.9,2442.5,3.6039]
[1728406264250,3.19,2442.9,2442.5,3.6217]
[1728406264454,0.40962,2442.6,2442.5,2.91199422]
[1728406264653,3.19,2442.7,2442.5,2.49610421]
[1728406264854,0.6498,2442.8,2442.6,0.40961]
[1728406265057,5.9929,2443.2,2442.9,0.40957]
[1728406265259,0.40958,2442.9,2442.6,0.40962]
[1728406265561,3.19,2443.1,2442.5,3.15150421]
[1728406265856,0.40957,2443.0,2442.7,0.4096]
[1728406266254,3.19,2443.1,2442.5,2.49610421]
[1728406266255,3.19,2442.9,2442.5,2.49610421]
[1728406266580,3.19,2442.7,2442.5,2.49610421]
[1728406266860,3.19,2442.7,2442.5,2.90574421]
[1728406267253,3.19,2442.7,2442.5,2.49610421]
[1728406267447,3.19,2442.9,2442.5,2.49610421]
[1728406267652,3.59958,2442.9,2442.5,2.49610421]
[1728406267859,3.59958,2442.9,2442.6,0.40962]
[1728406268658,3.19,2442.9,2442.5,2.49610421]
[1728406268859,0.40959,2442.8,2442.5,2.90573421]
[1728406269359,3.19,2442.9,2442.5,2.49610421]
[1728406269557,0.40958,2442.9,2442.6,0.40961]
[1728406269857,3.19,2443.1,2442.5,2.49610421]
[1728406270262,0.40956,2443.0,2442.5,2.49610421]
[1728406270459,3.19,2443.1,2442.6,0.40961]
[1728406270656,0.40959,2442.8,2442.5,2.90572421]
[1728406271155,0.4096,2442.8,2442.5,2.49610421]
[1728406271355,1.3493,2442.7,2442.5,2.90573421]
[1728406272058,1.3493,2442.7,2442.5,2.49610421]
[1728406272262,1.3493,2442.7,2442.5,2.90573421]
[1728406272462,3.19,2443.1,2442.5,2.49610421]
[1728406272662,1.09936,2443.0,2442.7,0.4096]
[1728406273162,0.40957,2442.9,2442.6,0.40961]
[1728406273363,1.09937,2443.0,2442.7,0.4096]
[1728406273767,0.6898,2443.0,2442.7,0.4096]
[1728406274069,1.09936,2443.0,2442.7,0.4096]
[1728406274266,0.6898,2443.0,2442.5,2.49610421]
[1728406274469,0.40959,2442.8,2442.5,2.90573421]
[1728406274763,3.19,2442.9,2442.5,2.49610421]
[1728406274966,0.40959,2442.8,2442.5,2.90573421]
[1728406275655,0.40959,2442.8,2442.5,0.40963]
[1728406275863,0.40959,2442.8,2442.5,3.61743]
[1728406276365,3.19,2442.7,2442.5,3.2078]
[1728406276660,0.40962,2442.6,2442.3,1.07097]
[1728406277157,0.40962,2442.6,2442.3,0.6613]
[1728406277353,0.40962,2442.6,2442.3,1.07096]
[1728406277755,3.19,2442.7,2442.3,0.6613]
[1728406277952,3.19,2442.7,2442.4,0.40965]
[1728406277953,3.59962,2442.7,2442.4,0.40965]
[1728406278156,0.40959,2442.8,2442.5,0.40963]
[1728406278364,0.40959,2442.8,2442.3,0.6613]
[1728406278365,0.40961,2442.7,2442.4,0.40964]
[1728406278663,0.40962,2442.6,2442.4,0.40964]
[1728406278856,4.21395,2442.9,2442.4,0.40964]
[1728406279056,3.19,2442.9,2442.3,3.8691]
[1728406279363,0.40962,2442.7,2442.4,0.40965]
[1728406280057,1.02398,2442.8,2442.4,0.40965]
[1728406280058,0.40962,2442.6,2442.4,0.40965]
[1728406280260,1.02398,2442.8,2442.4,0.40965]
[1728406280455,1.02398,2442.8,2442.3,0.6613]
[1728406280456,3.19,2442.9,2442.3,0.6613]
[1728406280652,0.40961,2442.7,2442.4,0.40965]
[1728406280852,4.21394,2442.9,2442.3,3.8691]
[1728406281052,2.032,2442.8,2442.3,3.8691]
[1728406281264,0.40962,2442.7,2442.4,0.40965]
[1728406281466,0.40961,2442.7,2442.4,0.40964]
[1728406281766,2.4416,2442.8,2442.5,0.40963]
[1728406281968,0.40961,2442.7,2442.5,0.40963]
[1728406282760,0.40961,2442.7,2442.4,0.40965]
[1728406283255,4.21394,2442.9,2442.3,3.8691]
[1728406283459,0.40961,2442.7,2442.5,0.40963]
[1728406283659,0.40961,2442.7,2442.3,3.8691]
[1728406283860,2.032,2442.8,2442.5,0.40963]
[1728406284059,0.40961,2442.7,2442.4,0.40964]
[1728406284264,0.40961,2442.7,2442.5,0.40963]
[1728406284565,0.6898,2443.0,2442.8,0.40959]
[1728406284764,1.09936,2443.0,2442.7,0.4096]
[1728406285068,1.09936,2443.0,2442.5,1.04523]
[1728406285069,0.4096,2442.8,2442.5,1.04523]
[1728406285368,0.40959,2442.8,2442.6,0.40961]
[1728406285559,3.59958,2442.9,2442.6,0.40961]
[1728406286264,3.59958,2442.9,2442.5,0.6356]
[1728406286265,3.19,2442.9,2442.5,0.6356]
[1728406286565,3.19,2442.9,2442.5,1.6597]
[1728406286775,1.09936,2443.0,2442.8,0.40958]
[1728406287062,1.09936,2443.0,2442.5,1.6597]
[1728406287262,0.6898,2443.0,2442.7,0.40959]
[1728406287466,3.13137,2443.0,2442.7,0.40959]
[1728406287666,2.7218,2443.0,2442.8,0.40958]
[1728406287964,3.13136,2443.0,2442.7,0.40959]
[1728406289273,0.40958,2442.9,2442.5,0.6356]
[1728406289771,5.9118,2443.0,2442.3,3.8691]
[1728406290063,0.40962,2442.7,2442.4,0.40965]
[1728406290269,0.40962,2442.7,2442.3,3.8691]
[1728406290472,0.40962,2442.7,2442.4,0.40965]
[1728406290768,0.7002,2442.6,2442.5,0.40964]
[1728406290965,5.9118,2443.0,2442.3,4.89328]
[1728406291161,3.8798,2443.0,2442.6,3.2078]
[1728406291361,3.13136,2443.0,2442.8,0.40958]
[1728406291557,0.6898,2443.0,2442.8,0.40958]
[1728406291757,1.09936,2443.0,2442.7,0.40959]
[1728406292159,0.6898,2443.0,2442.7,0.4096]
[1728406292363,1.09936,2443.0,2442.7,0.4096]
[1728406292567,0.6898,2443.0,2442.8,0.40958]
[1728406292777,1.09936,2443.0,2442.7,0.40959]
[1728406293171,3.19,2443.4,2442.7,1.02402]
[1728406293473,0.40951,2443.3,2443.0,0.40955]
[1728406293666,1.2799,2443.4,2442.9,3.2078]
[1728406293968,1.2799,2443.4,2443.2,0.40952]
[1728406294164,1.2799,2443.4,2443.1,0.40952]
[1728406294464,5.2398,2443.6,2443.0,4.21389]
[1728406294670,3.2078,2443.6,2443.4,0.40948]
[1728406294862,3.2078,2443.6,2443.5,0.40947]
[1728406295067,3.2078,2443.6,2443.4,0.40947]
[1728406295565,3.2078,2443.6,2443.3,0.6415]
[1728406295761,3.61726,2443.6,2443.3,1.051]
[1728406295968,3.61726,2443.6,2442.9,4.64562]
[1728406295969,3.19,2443.4,2442.9,3.6217]
[1728406296162,4.23144,2443.6,2443.0,0.40955]
[1728406296163,3.19,2443.2,2443.0,0.40955]
[1728406296363,3.59953,2443.2,2442.9,3.2078]
[1728406296559,3.19,2443.2,2442.9,3.2078]
[1728406296764,4.4951,2443.3,2442.9,3.2078]
[1728406296963,4.4951,2443.3,2443.1,0.40953]
[1728406297164,1.3051,2443.3,2443.1,0.40953]
[1728406298276,1.3051,2443.3,2443.1,0.40954]
[1728406299275,0.40953,2443.2,2442.9,3.61737]
[1728406299469,1.3051,2443.3,2443.0,0.40955]
[1728406299773,1.71461,2443.3,2443.0,0.40955]
[1728406299971,1.71461,2443.3,2443.1,0.40953]
[1728406300170,1.71461,2443.3,2442.9,3.2078]
[1728406300370,1.71461,2443.3,2443.0,0.40954]
[1728406300679,1.71461,2443.3,2443.1,0.40953]
[1728406301168,1.3051,2443.3,2443.1,0.40953]
[1728406301370,1.7146,2443.3,2443.1,0.40953]
[1728406301573,1.7146,2443.3,2442.9,3.2078]
[1728406301574,1.3051,2443.3,2442.9,3.2078]
[1728406301769,1.3051,2443.3,2443.2,0.40952]
[1728406306589,1.3051,2443.3,2443.0,1.3808]
[1728406306778,1.3051,2443.3,2443.1,0.40954]
[1728406307076,1.3051,2443.3,2443.2,0.40952]
[1728406307477,1.3051,2443.3,2443.1,0.40952]
[1728406307667,3.19,2443.2,2442.7,0.6693]
[1728406307872,0.4096,2442.8,2442.6,3.2078]
[1728406308072,3.5996,2442.8,2442.6,3.2078]
[1728406308272,1.7898,2442.7,2442.6,3.2078]
[1728406308675,0.40963,2442.6,2442.4,3.2078]
[1728406308870,0.40963,2442.6,2442.3,0.40966]
[1728406309380,1.78981,2442.7,2442.3,0.40966]
[1728406309579,1.78981,2442.7,2442.4,3.2078]
[1728406310079,1.3802,2442.7,2442.5,0.40964]
[1728406310582,1.3802,2442.7,2442.4,3.61744]
[1728406310875,1.3802,2442.7,2442.5,0.40963]
[1728406311474,1.3802,2442.7,2442.4,3.61745]
[1728406311475,1.78981,2442.7,2442.4,3.61745]
[1728406312880,1.3802,2442.7,2442.5,0.40963]
[1728406313082,1.3802,2442.7,2442.4,3.2078]
[1728406313578,1.3802,2442.7,2442.4,3.61744]
[1728406313778,1.78981,2442.7,2442.4,3.61744]
[1728406313974,0.40962,2442.6,2442.4,3.2078]
[1728406314174,3.3922,2442.7,2442.3,0.40967]
[1728406314379,3.80181,2442.7,2442.3,3.61746]
[1728406315677,3.3922,2442.7,2442.3,3.2078]
[1728406315978,3.80181,2442.7,2442.3,3.2078]
[1728406316284,0.40962,2442.6,2442.3,3.61746]
[1728406317983,3.80182,2442.7,2442.3,3.61746]
[1728406318672,3.80182,2442.7,2442.4,0.40965]
[1728406318879,0.40963,2442.6,2442.3,3.61746]
[1728406319080,3.3922,2442.7,2442.3,3.2078]
[1728406319287,3.19,2442.4,2442.3,3.2078]
[1728406319478,0.40968,2442.3,2442.0,3.61752]
[1728406319680,0.6618,2442.2,2442.0,3.61752]
[1728406319883,0.6618,2442.2,2442.1,0.4097]
[1728406320079,0.6618,2442.2,2442.0,3.2078]
[1728406320384,0.6618,2442.2,2442.1,0.4097]
[1728406320578,0.6618,2442.2,2442.0,3.2078]
[1728406320783,0.6618,2442.2,2442.1,0.4097]
[1728406321187,3.2078,2442.7,2442.1,4.0944]
[1728406321392,0.40966,2442.4,2442.3,3.2078]
[1728406321888,0.40967,2442.4,2442.1,0.40969]
[1728406322186,0.7037,2442.5,2442.3,3.2078]
[1728406322383,3.10281,2442.7,2442.4,0.40965]
[1728406322576,1.79351,2442.7,2442.4,0.40965]
[1728406322776,3.80651,2442.7,2442.4,0.40965]
[1728406322983,3.80651,2442.7,2442.3,3.2078]
[1728406322984,3.59962,2442.6,2442.3,3.61746]
[1728406323791,3.59962,2442.6,2442.4,0.40965]
[1728406323985,3.19,2442.6,2442.4,0.40965]
[1728406324187,3.59962,2442.6,2442.3,3.61746]
[1728406325091,3.19,2442.6,2442.3,3.2078]
[1728406325290,3.19,2442.6,2442.0,3.2078]
[1728406325491,0.40966,2442.4,2442.1,0.40969]
[1728406325793,0.40964,2442.5,2442.2,0.40968]
[1728406326387,3.59967,2442.4,2442.1,0.4097]
[1728406326689,3.59966,2442.4,2442.1,0.4097]
[1728406326896,0.6378,2442.3,2442.1,0.4097]
[1728406327994,0.6378,2442.3,2442.2,0.40969]
[1728406328194,0.6378,2442.3,2442.1,0.40969]
[1728406328689,0.6802,2442.7,2442.1,5.11867]
[1728406328895,0.6802,2442.7,2442.6,0.40962]
[1728406329189,0.6802,2442.7,2442.5,3.61743]
[1728406329781,0.6802,2442.7,2442.5,3.2078]
[1728406329989,0.6802,2442.7,2442.5,3.61743]
[1728406330287,1.08981,2442.7,2442.5,3.2078]
[1728406330489,0.6802,2442.7,2442.5,3.2078]
[1728406330792,1.08981,2442.7,2442.3,1.04696]
[1728406330993,0.6802,2442.7,2442.3,4.86927]
[1728406331192,0.6802,2442.7,2442.6,0.40962]
[1728406331392,0.6802,2442.7,2442.3,4.86927]
[1728406331593,0.6394,2442.9,2442.6,3.2078]
[1728406331995,0.6394,2442.9,2442.8,0.40959]
[1728406332189,3.2078,2443.0,2442.9,0.40957]
[1728406332492,5.61249,2443.4,2442.9,3.2078]
[1728406332493,0.6487,2443.3,2442.9,3.2078]
[1728406332687,0.6487,2443.3,2443.0,0.40954]
[1728406332890,1.05821,2443.3,2442.9,3.61736]
[1728406333392,3.19,2443.0,2442.9,3.2078]
[1728406333698,0.40957,2442.9,2442.6,3.61741]
[1728406333901,0.6885,2442.8,2442.6,3.2078]
[1728406334113,0.6885,2442.8,2442.7,0.4096]
[1728406334398,0.6885,2442.8,2442.6,3.2078]
[1728406334599,0.6885,2442.8,2442.6,3.61742]
[1728406334792,0.6885,2442.8,2442.7,0.4096]
[1728406335492,3.19,2443.4,2443.1,0.40953]
[1728406335694,4.5447,2443.4,2443.1,0.40953]
[1728406336000,0.40951,2443.3,2443.0,0.40955]
[1728406336400,5.2338,2443.4,2442.8,2.0068]
[1728406336698,5.2338,2443.4,2442.9,0.40956]
[1728406336996,3.19,2443.2,2442.8,0.6527]
[1728406337205,3.19,2443.2,2443.0,0.40955]
[1728406337795,5.2338,2443.4,2443.1,0.40953]
[1728406338190,5.2338,2443.4,2443.2,0.40952]
[1728406338394,0.40951,2443.3,2443.0,0.40955]
[1728406338597,0.40951,2443.3,2442.9,0.40956]
[1728406338803,0.40951,2443.3,2442.9,0.40957]
[1728406339306,0.40953,2443.2,2442.9,0.40957]
[1728406339499,7.2438,2443.4,2443.0,0.40955]
[1728406339997,0.40951,2443.3,2443.0,0.40955]
[1728406340399,7.2438,2443.4,2442.9,3.2078]
[1728406340691,5.2338,2443.4,2443.2,0.40951]
[1728406341301,4.5447,2443.4,2443.2,0.40951]
[1728406341617,1.3547,2443.4,2443.2,3.2078]
[1728406341897,1.3547,2443.4,2443.2,0.40951]
[1728406342094,1.3547,2443.4,2443.0,1.3681]
[1728406342301,1.3547,2443.4,2443.1,0.40952]
[1728406342597,1.3547,2443.4,2443.2,0.40951]
[1728406342908,1.7642,2443.4,2443.1,0.40953]
[1728406343909,1.3547,2443.4,2442.8,4.5244]
[1728406344196,1.3547,2443.4,2443.3,0.4095]
[1728406344396,1.3547,2443.4,2443.1,3.2078]
[1728406344602,0.6885,2443.4,2443.3,0.4095]
[1728406344901,2.01,2443.6,2443.2,1.3117]
[1728406345099,1.2908,2443.7,2443.5,0.40947]
[1728406345400,1.2908,2443.7,2443.6,0.40945]
[1728406345599,1.2908,2443.7,2443.4,3.2078]
[1728406345899,1.70024,2443.7,2443.4,3.61727]
[1728406346401,1.2908,2443.7,2443.6,0.40945]
[1728406346798,1.2908,2443.7,2443.5,0.40946]
[1728406346998,1.2908,2443.7,2443.5,0.40947]
[1728406347306,1.2908,2443.7,2443.5,0.40945]
[1728406347495,1.2908,2443.7,2443.6,0.40945]
[1728406350295,1.2908,2443.7,2443.5,0.40946]
[1728406350498,1.2908,2443.7,2443.4,3.2078]
[1728406350907,1.2908,2443.7,2443.5,0.40946]
[1728406354806,1.2908,2443.7,2443.4,3.2078]
[1728406354807,1.70024,2443.7,2443.4,3.61728]
[1728406355003,1.2908,2443.7,2443.4,3.2078]
[1728406355206,1.2908,2443.7,2443.2,1.07981]
[1728406355207,0.40948,2443.5,2443.2,1.07981]
[1728406355397,3.8383,2443.6,2443.2,0.40951]
[1728406355597,0.40953,2443.2,2443.1,3.2078]